fUSD/lending_fUSD_20260122
["ID","MTS","AMOUNT","RATE_DAILY","PERIOD"]
[403066954,1769121038980,-1143.49,0.00016006,2]
[403066955,1769121038990,-500.0,0.00016006,2]
[403066956,1769121038999,-500.0,0.00016006,2]
[403066957,1769121039009,-500.0,0.00016006,2]
[403066958,1769121039023,-509.89335686,0.00016006,2]
[403066959,1769121039034,-540.08705783,0.00016006,2]
[403066960,1769121039045,-217.98,0.00016006,2]
[403066961,1769121039055,-502.69034994,0.00016006,2]
[403066962,1769121039065,-500.0,0.00016006,2]
[403066963,1769121039075,-500.0,0.00016006,2]
[403066964,1769121039086,-500.0,0.00016006,2]
[403066965,1769121039096,-516.50754003,0.00016006,2]
[403066966,1769121039105,-563.85537186,0.00016006,2]
[403066967,1769121039115,-500.0,0.00016006,2]
[403066968,1769121039124,-500.0,0.00016006,2]
[403066969,1769121039134,-596.95186764,0.00016006,2]
[403066970,1769121039144,-500.0,0.00016006,2]
[403066971,1769121039153,-500.0,0.00016006,2]
[403066972,1769121039164,-500.0,0.00016006,2]
[403066973,1769121039173,-368.70990999,0.00016006,2]
[403066974,1769121039183,-500.0,0.00016006,2]
[403066975,1769121039193,-500.0,0.00016006,2]
[403066976,1769121039203,-500.0,0.00016006,2]
[403066977,1769121039213,-261.63045741,0.00016006,2]
[403066978,1769121039222,-399.0058661,0.00016006,2]
[403066979,1769121039231,-163.74317306,0.00016006,2]
[403066980,1769121039241,-500.0,0.00016006,2]
[403066981,1769121039250,-500.0,0.00016006,2]
[403066982,1769121039259,-502.45776395,0.00016006,2]
[403066983,1769121039269,-500.0,0.00016006,2]
[403066984,1769121039278,-500.0,0.00016006,2]
[403066985,1769121039287,-500.0,0.00016006,2]
[403066986,1769121039297,-500.0,0.00016006,2]
[403066987,1769121039306,-500.0,0.00016006,2]
[403066988,1769121039316,-500.0,0.00016006,2]
[403066989,1769121039325,-500.0,0.00016006,2]
[403066990,1769121039335,-500.0,0.00016006,2]
[403066991,1769121039344,-500.0,0.00016006,2]
[403066992,1769121039354,-500.0,0.00016006,2]
[403066993,1769121039363,-500.0,0.00016006,2]
[403066994,1769121039372,-500.0,0.00016006,2]
[403066995,1769121039382,-345.26116864,0.00016006,2]
[403066996,1769121039391,-500.0,0.00016006,2]
[403066997,1769121039400,-500.0,0.00016006,2]
[403066998,1769121039409,-500.0,0.00016006,2]
[403066999,1769121039418,-500.0,0.00016006,2]
[403067000,1769121039428,-500.0,0.00016006,2]
[403067001,1769121039437,-500.0,0.00016006,2]
[403067002,1769121039447,-500.0,0.00016006,2]
[403067003,1769121039456,-500.0,0.00016006,2]
[403067004,1769121039465,-500.0,0.00016006,2]
[403067005,1769121039475,-500.0,0.00016006,2]
[403067006,1769121039484,-500.0,0.00016006,2]
[403067007,1769121039494,-500.0,0.00016006,2]
[403067008,1769121039504,-500.0,0.00016006,2]
[403067009,1769121039513,-500.0,0.00016006,2]
[403067010,1769121039523,-500.0,0.00016006,2]
[403067011,1769121039532,-500.0,0.00016006,2]
[403067012,1769121039541,-500.0,0.00016006,2]
[403067013,1769121039551,-500.0,0.00016006,2]
[403067014,1769121039563,-500.0,0.00016006,2]
[403067015,1769121039574,-500.0,0.00016006,2]
[403067016,1769121039583,-500.0,0.00016006,2]
[403067017,1769121039592,-500.0,0.00016006,2]
[403067018,1769121039601,-500.0,0.00016006,2]
[403067019,1769121039610,-500.0,0.00016006,2]
[403067020,1769121039620,-500.0,0.00016006,2]
[403067021,1769121039631,-500.0,0.00016006,2]
[403067022,1769121039640,-500.0,0.00016006,2]
[403067023,1769121039650,-500.0,0.00016006,2]
[403067024,1769121039660,-500.0,0.00016006,2]
[403067025,1769121039670,-500.0,0.00016006,2]
[403067026,1769121039680,-500.0,0.00016006,2]
[403067027,1769121039690,-500.0,0.00016006,2]
[403067028,1769121039700,-500.0,0.00016006,2]
[403067029,1769121039710,-500.0,0.00016006,2]
[403067030,1769121039721,-500.0,0.00016006,2]
[403067031,1769121039731,-500.0,0.00016006,2]
[403067032,1769121039741,-500.0,0.00016006,2]
[403067033,1769121039752,-500.0,0.00016006,2]
[403067034,1769121039762,-500.0,0.00016006,2]
[403067035,1769121039771,-500.0,0.00016006,2]
[403067036,1769121039780,-400.0,0.00016006,2]
[403067037,1769121039789,-500.0,0.00016006,2]
[403067038,1769121039799,-500.0,0.00016006,2]
[403067039,1769121039808,-500.0,0.00016006,2]
[403067040,1769121039817,-500.0,0.00016006,2]
[403067041,1769121039826,-500.0,0.00016006,2]
[403067042,1769121039835,-500.0,0.00016006,2]
[403067043,1769121039845,-500.0,0.00016006,2]
[403067044,1769121039854,-500.0,0.00016006,2]
[403067045,1769121039863,-500.0,0.00016006,2]
[403067046,1769121039873,-500.0,0.00016006,2]
[403067047,1769121039883,-500.0,0.00016006,2]
[403067048,1769121039892,-500.0,0.00016006,2]
[403067049,1769121039901,-435.74680204,0.00016006,2]
[403067050,1769121039910,-500.0,0.00016006,2]
[403067051,1769121039919,-500.0,0.00016006,2]
[403067052,1769121039929,-500.0,0.00016006,2]
[403067053,1769121039938,-500.0,0.00016006,2]
[403067054,1769121039947,-500.0,0.00016006,2]
[403067055,1769121039956,-500.0,0.00016006,2]
[403067056,1769121039966,-500.0,0.00016006,2]
[403067057,1769121039976,-500.0,0.00016006,2]
[403067058,1769121039984,-500.0,0.00016006,2]
[403067059,1769121039994,-500.0,0.00016006,2]
[403067060,1769121040003,-500.0,0.00016006,2]
[403067061,1769121040014,-500.0,0.00016006,2]
[403067062,1769121040025,-350.0,0.00016006,2]
[403067063,1769121040035,-500.0,0.00016006,2]
[403067064,1769121040045,-161856.75,0.00016017,2]
[403067065,1769121040055,-152.17,0.00016072,2]
[403067066,1769121040064,-47701.73,0.00016116,2]
[403067068,1769121040074,-999.99,0.00016116,2]
[403067069,1769121040083,-3694.38,0.00016116,2]
[403067070,1769121040093,-4716.27,0.00016116,2]
[403067071,1769121040102,-9999.99,0.00016116,2]
[403067072,1769121040111,-9999.99,0.00016116,2]
[403067073,1769121040120,-561.5,0.00016116,5]
[403067074,1769121040129,-8029.97,0.00016116,2]
[403067076,1769121040138,-535.14,0.00016116,2]
[403067077,1769121040147,-9999.99,0.00016116,2]
[403067079,1769121040328,-150.99,0.00016116,2]
[403067080,1769121040337,-299.99,0.00016116,4]
[403067081,1769121040347,-6455.27,0.00016116,2]
[403067082,1769121040356,-749.31,0.00016116,2]
[403067083,1769121040366,-9999.99,0.00016116,2]
[403067084,1769121040375,-2585.77,0.00016116,2]
[403067085,1769121040385,-152.17,0.00016145,2]
[403067086,1769121040394,-520.0,0.00016152,2]
[403067087,1769121040404,-168570.73805095,0.00016181,2]
[403067088,1769121040413,-828.0,0.00016184,2]
[403067089,1769121040423,-5000.00474667,0.000162,5]
[403067090,1769121040432,-1921.0,0.00016207,2]
[403067091,1769121040441,-1461.0,0.00016217,2]
[403067092,1769121040450,-152.17,0.00016218,2]
[403067093,1769121040459,-180.0,0.0001624,2]
[403067094,1769121040469,-1210.0,0.00016249,2]
[403067095,1769121040478,-1917.0,0.00016272,2]
[403067096,1769121040488,-500.0,0.0001628,2]
[403067097,1769121040497,-630.71,0.0001628,2]
[403067098,1769121040507,-1736.0,0.00016281,2]
[403067099,1769121040516,-152.17,0.00016291,2]
[403067100,1769121040526,-1421.0,0.00016304,2]
[403067101,1769121040536,-1760.0,0.00016313,2]
[403067102,1769121040545,-1602.0,0.00016337,2]
[403067103,1769121040556,-1227.0,0.00016346,2]
[403067104,1769121040565,-152.17,0.00016364,2]
[403067105,1769121040575,-379.0,0.00016369,2]
[403067106,1769121040584,-443.0,0.00016378,2]
[403067107,1769121040593,-1836.0,0.00016401,2]
[403067108,1769121040602,-570.0,0.0001641,2]
[403067109,1769121040611,-152.17,0.00016437,2]
[403067110,1769121040620,-500.0,0.00016438,2]
[403067111,1769121040629,-500.0,0.00016438,2]
[403067112,1769121040638,-500.0,0.00016438,2]
[403067113,1769121040647,-337.31356556,0.00016438,2]
[403067114,1769121040657,-500.0,0.00016438,2]
[403067115,1769121040666,-500.0,0.00016438,2]
[403067116,1769121040675,-500.0,0.00016438,2]
[403067117,1769121040684,-500.0,0.00016438,2]
[403067118,1769121040693,-500.0,0.00016438,2]
[403067119,1769121040703,-250.0,0.00016438,2]
[403067120,1769121040712,-250.0,0.00016438,2]
[403067121,1769121040721,-250.0,0.00016438,2]
[403067122,1769121040731,-250.0,0.00016438,2]
[403067123,1769121040740,-250.0,0.00016438,2]
[403067124,1769121040750,-346.954475,0.00016438,2]
[403067125,1769121040759,-165.2,0.0001644,2]
[403067126,1769121040768,-297.87310162,0.00016501,2]
[403067127,1769121040777,-152.17,0.0001651,2]
[403067128,1769121040787,-1000.0,0.00016515,2]
[403067129,1769121040796,-500.0,0.00016546,2]
[403067130,1769121040806,-500.0,0.00016554,2]
[403067131,1769121040815,-630.71,0.00016554,2]
[403067132,1769121040825,-152.17,0.00016583,2]
[403067133,1769121040834,-500.0,0.00016591,2]
[403067134,1769121040843,-500.0,0.00016591,2]
[403067135,1769121040852,-500.0,0.00016591,2]
[403067136,1769121040862,-500.0,0.00016591,2]
[403067137,1769121040872,-431.77363553,0.00016596,2]
[403067138,1769121040881,-360.2415698,0.000166,2]
[403067139,1769121040891,-258.96627498,0.00016656,2]
[403067140,1769121040900,-152.17,0.00016656,2]
[403067141,1769121040910,-260.29,0.00016671,2]
[403067142,1769121040919,-357.69652363,0.000167,2]
[403067143,1769121040929,-166.33,0.00016712,2]
[403067144,1769121040938,-152.17,0.00016729,2]
[403067145,1769121040947,-152.17,0.00016802,2]
[403067146,1769121040957,-500.0,0.00016828,2]
[403067147,1769121040966,-630.71,0.00016828,2]
[403067148,1769121040975,-152.17,0.00016875,2]
[403067149,1769121040984,-1000.0,0.00016967,2]
[403067150,1769121040993,-434.62,0.00016997,2]
[403067151,1769121041003,-250.0,0.00017,2]
[403067152,1769121041015,-200.0,0.00017091,2]
[403067153,1769121041025,-500.0,0.00017094,2]
[403067154,1769121041034,-500.0,0.00017102,2]
[403067155,1769121041044,-630.71,0.00017102,2]
[403067156,1769121041055,-1000.0,0.00017112,2]
[403067157,1769121041064,-500.0,0.00017212,2]
[403067158,1769121041073,-280.30876017,0.00017249,2]
[403067159,1769121041083,-3210.0,0.00017304,2]
[403067160,1769121041092,-500.0,0.00017344,2]
[403067161,1769121041102,-731.0,0.00017372,2]
[403067162,1769121041111,-500.0,0.00017376,2]
[403067163,1769121041120,-630.71,0.00017376,2]
[403067164,1769121041130,-1680.0,0.00017382,2]
[403067165,1769121041140,-500.0,0.00017425,2]
[403067166,1769121041149,-150.0,0.00017425,2]
[403067167,1769121041158,-150.0,0.00017425,2]
[403067168,1769121041168,-150.0,0.00017425,2]
[403067169,1769121041177,-150.0,0.00017425,2]
[403067170,1769121041188,-150.0,0.00017425,2]
[403067171,1769121041198,-500.0,0.00017425,2]
[403067172,1769121041209,-500.0,0.00017425,2]
[403067173,1769121041219,-150.0,0.00017425,2]
[403067174,1769121041230,-500.0,0.00017425,2]
[403067175,1769121041240,-150.0,0.00017425,2]
[403067176,1769121041250,-500.0,0.00017425,2]
[403067177,1769121041260,-500.0,0.00017425,2]
[403067178,1769121041275,-500.0,0.00017425,2]
[403067179,1769121041284,-500.0,0.00017425,2]
[403067180,1769121041294,-500.0,0.00017425,2]
[403067181,1769121041304,-150.0,0.00017425,2]
[403067182,1769121041314,-150.0,0.00017425,2]
[403067183,1769121041323,-500.0,0.00017425,2]
[403067184,1769121041332,-500.0,0.00017425,2]
[403067185,1769121041342,-500.0,0.00017425,2]
[403067186,1769121041351,-150.0,0.00017425,2]
[403067187,1769121041361,-500.0,0.00017425,2]
[403067188,1769121041370,-551.0,0.00017425,2]
[403067189,1769121041380,-500.0,0.00017425,2]
[403067190,1769121041390,-500.0,0.00017425,2]
[403067191,1769121041399,-500.0,0.00017425,2]
[403067192,1769121041409,-1569.0,0.00017439,2]
[403067193,1769121041418,-1569.0,0.00017465,2]
[403067194,1769121041428,-500.0,0.0001748,2]
[403067195,1769121041437,-150.0,0.0001748,2]
[403067196,1769121041446,-150.0,0.0001748,2]
[403067197,1769121041456,-150.0,0.0001748,2]
[403067198,1769121041466,-150.0,0.0001748,2]
[403067199,1769121041475,-150.0,0.0001748,2]
[403067200,1769121041483,-500.0,0.0001748,2]
[403067201,1769121041491,-500.0,0.0001748,2]
[403067202,1769121041500,-150.0,0.0001748,2]
[403067203,1769121041509,-500.0,0.0001748,2]
[403067204,1769121041519,-500.0,0.0001748,2]
[403067205,1769121041528,-150.0,0.0001748,2]
[403067206,1769121041537,-500.0,0.0001748,2]
[403067207,1769121041548,-500.0,0.0001748,2]
[403067208,1769121041558,-500.0,0.0001748,2]
[403067209,1769121041567,-500.0,0.0001748,2]
[403067210,1769121041576,-150.0,0.0001748,2]
[403067211,1769121041584,-500.0,0.0001748,2]
[403067212,1769121041593,-500.0,0.0001748,2]
[403067213,1769121041603,-500.0,0.0001748,2]
[403067214,1769121041612,-500.0,0.0001748,2]
[403067215,1769121041622,-551.0,0.0001748,2]
[403067216,1769121041632,-500.0,0.0001748,2]
[403067217,1769121041642,-500.0,0.0001748,2]
[403067218,1769121041651,-500.0,0.0001748,2]
[403067219,1769121041661,-3302.94097839,0.000175,3]
[403067220,1769121041670,-1604.04104564,0.000175,2]
[403067221,1769121041680,-195.0,0.00017508,2]
[403067222,1769121041690,-5000.0,0.00017508,2]
[403067223,1769121041699,-193.0,0.00017508,2]
[403067224,1769121041710,-200.0,0.00017508,2]
[403067225,1769121041719,-202.11619681,0.00017508,2]
[403067226,1769121041729,-300.0,0.00017508,2]
[403067227,1769121041740,-600.0,0.00017508,2]
[403067228,1769121041750,-195.0,0.00017508,2]
[403067229,1769121041761,-375.32425764,0.00017508,2]
[403067230,1769121041770,-2500.0,0.00017508,2]
[403067231,1769121041780,-300.0,0.00017508,2]
[403067232,1769121041790,-250.0,0.00017508,2]
[403067233,1769121041801,-729.0,0.00017511,2]
[403067234,1769121041810,-500.0,0.00017535,2]
[403067235,1769121041819,-211.25613076,0.00017535,2]
[403067236,1769121041829,-250.0,0.00017535,2]
[403067237,1769121041839,-150.0,0.00017535,2]
[403067238,1769121041848,-250.0,0.00017535,2]
[403067239,1769121041857,-268.16233582,0.00017535,2]
[403067240,1769121041866,-500.0,0.00017535,2]
[403067241,1769121041875,-500.0,0.00017535,2]
[403067242,1769121041884,-300.0,0.00017535,2]
[403067243,1769121041894,-205.46005612,0.00017535,2]
[403067244,1769121041905,-500.0,0.00017535,2]
[403067245,1769121041914,-500.0,0.00017535,2]
[403067246,1769121041923,-500.0,0.00017535,2]
[403067247,1769121041933,-500.0,0.00017535,2]
[403067248,1769121041944,-150.0,0.00017535,2]
[403067249,1769121041953,-500.0,0.00017535,2]
[403067250,1769121041962,-500.0,0.00017535,2]
[403067251,1769121041972,-500.0,0.00017535,2]
[403067252,1769121041981,-500.0,0.00017535,2]
[403067253,1769121041990,-551.0,0.00017535,2]
[403067254,1769121041999,-504.31209955,0.00017535,2]
[403067255,1769121042008,-500.0,0.00017535,2]
[403067256,1769121042021,-500.0,0.00017535,2]
[403067257,1769121042030,-510.11481069,0.00017555,2]
[403067258,1769121042039,-1569.0,0.0001758,2]
[403067259,1769121042049,-500.0,0.00017589,2]
[403067260,1769121042060,-269.57764557,0.00017589,2]
[403067261,1769121042069,-500.0,0.00017589,2]
[403067262,1769121042078,-500.0,0.00017589,2]
[403067263,1769121042091,-500.0,0.00017589,2]
[403067264,1769121042100,-500.0,0.00017589,2]
[403067265,1769121042111,-500.0,0.00017589,2]
[403067266,1769121042121,-500.0,0.00017589,2]
[403067267,1769121042133,-234.08570023,0.00017589,2]
[403067268,1769121042144,-500.0,0.00017589,2]
[403067269,1769121042153,-500.0,0.00017589,2]
[403067270,1769121042162,-500.0,0.00017589,2]
[403067271,1769121042173,-402.13388248,0.00017589,2]
[403067272,1769121042183,-551.0,0.00017589,2]
[403067273,1769121042194,-500.0,0.00017589,2]
[403067274,1769121042203,-500.0,0.00017589,2]
[403067275,1769121042213,-1569.0,0.00017592,2]
[403067276,1769121042223,-311.52352362,0.00017644,2]
[403067277,1769121042235,-450.0,0.00017644,2]
[403067278,1769121042247,-350.0,0.00017644,2]
[403067279,1769121042256,-500.0,0.00017644,2]
[403067280,1769121042266,-500.0,0.00017644,2]
[403067281,1769121042275,-500.0,0.00017644,2]
[403067282,1769121042284,-500.0,0.00017644,2]
[403067283,1769121042294,-500.0,0.00017644,2]
[403067284,1769121042304,-500.0,0.00017644,2]
[403067285,1769121042313,-551.0,0.00017644,2]
[403067286,1769121042322,-150.0,0.00017644,2]
[403067287,1769121042331,-202.6359176,0.00017644,2]
[403067288,1769121042340,-567.66555884,0.0001765,2]
[403067289,1769121042349,-630.71,0.0001765,2]
[403067290,1769121042359,-200.0,0.00017666,2]
[403067291,1769121042368,-215.05133739,0.00017673,2]
[403067292,1769121042377,-500.0,0.00017673,2]
[403067293,1769121042386,-500.0,0.00017673,2]
[403067294,1769121042395,-490.42703734,0.00017673,2]
[403067295,1769121042404,-585.77072382,0.00017673,2]
[403067296,1769121042414,-500.0,0.00017673,2]
[403067297,1769121042423,-500.0,0.00017673,2]
[403067298,1769121042432,-500.0,0.00017699,2]
[403067299,1769121042442,-494.0,0.00017699,2]
[403067300,1769121042451,-500.0,0.00017699,2]
[403067301,1769121042460,-500.0,0.00017699,2]
[403067302,1769121042469,-500.0,0.00017699,2]
[403067303,1769121042479,-500.0,0.00017699,2]
[403067304,1769121042488,-551.0,0.00017699,2]
[403067305,1769121042498,-159.492661,0.00017699,2]
[403067306,1769121042507,-1000.0,0.00017709,2]
[403067307,1769121042518,-500.0,0.00017727,2]
[403067308,1769121042527,-739.739253,0.00017749,2]
[403067309,1769121042536,-500.0,0.00017754,2]
[403067310,1769121042546,-500.0,0.00017754,2]
[403067311,1769121042555,-566.0,0.00017754,2]
[403067312,1769121042565,-500.0,0.00017754,2]
[403067313,1769121042574,-500.0,0.00017754,2]
[403067314,1769121042583,-551.0,0.00017754,2]
[403067318,1769121042867,-150.0,0.00017808,2]
[403067319,1769121042894,-500.0,0.00017808,2]
[403067320,1769121042905,-500.0,0.00017809,2]
[403067321,1769121042915,-500.0,0.00017809,2]
[403067322,1769121042924,-469.0,0.00017809,2]
[403067323,1769121042934,-551.0,0.00017809,2]
[403067324,1769121042943,-2000.0,0.0001786,2]
[403067325,1769121042953,-1244.918,0.0001786,2]
[403067326,1769121042962,-367.044,0.0001786,2]
[403067327,1769121042971,-1000.32393849,0.0001786,2]
[403067328,1769121042981,-150.0,0.00017863,2]
[403067329,1769121042990,-500.0,0.00017863,2]
[403067330,1769121043000,-150.0,0.00017863,2]
[403067331,1769121043010,-500.0,0.00017863,2]
[403067332,1769121043024,-551.0,0.00017863,2]
[403067333,1769121043033,-1562.2548401,0.000179,2]
[403067334,1769121043043,-26682.59430966,0.000179,2]
[403067335,1769121043055,-380.45655404,0.000179,3]
[403067336,1769121043064,-2497.40920944,0.000179,2]
[403067337,1769121043073,-15495.85446133,0.000179,2]
[403067338,1769121043083,-25000.0,0.000179,3]
[403067339,1769121043095,-4565.44094248,0.000179,2]
[403067340,1769121043105,-500.0,0.000179,2]
[403067341,1769121043115,-500.0,0.000179,2]
[403067342,1769121043126,-1562.25484009,0.00017901,2]
[403067343,1769121043135,-1562.25484009,0.00017902,2]
[403067344,1769121043145,-150.0,0.00017918,2]
[403067345,1769121043156,-500.0,0.00017918,2]
[403067346,1769121043166,-551.0,0.00017918,2]
[403067347,1769121043175,-630.77,0.00017924,2]
[403067348,1769121043184,-500.0,0.00017947,2]
[403067349,1769121043196,-500.0,0.00017947,2]
[403067350,1769121043207,-150.0,0.00017972,2]
[403067351,1769121043218,-500.0,0.00017972,2]
[403067352,1769121043229,-30935.0,0.00017973,2]
[403067353,1769121043239,-551.0,0.00017973,2]
[403067354,1769121043250,-150.0,0.00017973,2]
[403067355,1769121043259,-150.0,0.00017973,2]
[403067356,1769121043269,-731.0,0.00017984,2]
[403067357,1769121043278,-1143.49,0.00017989,2]
[403067358,1769121043287,-500.0,0.00017999,2]
[403067359,1769121043296,-500.0,0.00017999,2]
[403067360,1769121043306,-500.0,0.00017999,2]
[403067361,1769121043315,-1143.49,0.00017999,2]
[403067362,1769121043326,-1143.49,0.00017999,2]
[403067363,1769121043336,-1143.49,0.00017999,2]
[403067364,1769121043345,-1143.49,0.00017999,2]
[403067365,1769121043355,-1143.49,0.00017999,2]
[403067366,1769121043364,-1143.49,0.00017999,2]
[403067367,1769121043374,-11866.44539761,0.00017999,2]
[403067368,1769121043383,-300.0,0.00017999,2]
[403067369,1769121043393,-300.0,0.00017999,2]
[403067370,1769121043402,-500.0,0.00017999,2]
[403067371,1769121043412,-500.0,0.00017999,2]
[403067372,1769121043422,-500.0,0.00017999,2]
[403067373,1769121043432,-1502421.25008136,0.00018,2]
[403067374,1769121043442,-1190.3363288,0.00018,2]
[403067375,1769121043452,-151.0,0.00018,2]
[403067376,1769121043462,-3123.5970611,0.00018,2]
[403067377,1769121043471,-40278.8017925,0.00018,2]
[403067378,1769121043480,-912.7001504,0.00018,2]
[403067379,1769121043490,-41488.4593591,0.00018,2]
[403067380,1769121043499,-2541428.58229481,0.00018,2]
[403067381,1769121043518,-401.616215,0.00018,2]
[403067382,1769121044258,-4800.3890111,0.00018,2]
[403067383,1769121045710,-2020.869312,0.00015717,2]
[403067384,1769121045722,-2180.0,0.00015717,2]
[403067388,1769121057725,-525.32728429,0.00015717,2]
[403067389,1769121059291,-284.42714575,0.00015717,2]
[403067390,1769121060768,-207.16504362,0.00015717,2]
[403067391,1769121062590,-225.26992441,0.00015717,2]
[403067392,1769121072629,-100.64454826,0.00015717,2]
[403067393,1769121072650,-267.70382205,0.00015778,2]
[403067394,1769121074717,-32.29617795,0.00015778,2]
[403067395,1769121074739,-480.3354333,0.00015778,2]
[403067396,1769121076225,-119.6645667,0.00015778,2]
[403067397,1769121076250,-140.62605403,0.00015778,2]
[403067400,1769121146377,566.26745592,0.000176,30]
[403067401,1769121163767,-287.6116302,0.00015738,2]
[403067402,1769121163788,-12.3883698,0.00015778,2]
[403067404,1769121193168,-536.84903701,0.00015738,2]
[403067405,1769121199586,-151.82715905,0.00015738,2]
[403067406,1769121199609,-41.98557617,0.00015778,2]
[403067407,1769121199632,-158.11278046,0.00015797,2]
[403067408,1769121199654,-61.4700421,0.00015797,2]
[403067410,1769121339022,-459.11746404,0.00015738,2]
[403067411,1769121339055,-133.5299579,0.00015797,2]
[403067412,1769121339641,-300.0,0.00015815,2]
[403067413,1769121339667,-58.97455968,0.00015815,2]
[403067414,1769121342307,-352.7249051,0.00015815,2]
[403067415,1769121345681,-234.26057769,0.00015815,2]
[403067416,1769121347424,-165.94860901,0.00015815,2]
[403067417,1769121349748,-190.65285717,0.00015815,2]
[403067418,1769121353063,-197.43849135,0.00015815,2]
[403067419,1769121353088,-28.29521504,0.00015816,2]
[403067420,1769121356574,-274.61431748,0.00015816,2]
[403067421,1769121358750,-187.27224938,0.00015816,2]
[403067422,1769121360900,-9.8182181,0.00015816,2]
[403067423,1769121360923,-374.88823049,0.00015816,2]
[403067424,1769121363210,-185.0,0.00015815,2]
[403067425,1769121363232,-26.05668385,0.00015815,2]
[403067427,1769121366070,-209.40344106,0.00015815,2]
[403067428,1769121369913,-64.53987509,0.00015815,2]
[403067429,1769121369936,-182.93391512,0.00015815,2]
[403067430,1769121370867,45.39117806,0.00015738,2]
[403067434,1769121432588,-126.11895586,0.00015738,2]
[403067435,1769121432611,-63.1488473,0.00015755,2]
[403067436,1769121435523,-219.08011171,0.00015755,2]
[403067437,1769121439592,-176.36245255,0.00015715,2]
[403067438,1769121439614,-461.04644026,0.00015755,2]
[403067439,1769121441569,-176.1061532,0.00015755,2]
[403067440,1769121443626,-375.31940892,0.00015755,2]
[403067442,1769121447248,-176.36245255,0.00015716,2]
[403067443,1769121447270,-20.11861731,0.00015755,2]
[403067444,1769121448921,-400.68174303,0.00015755,2]
[403067445,1769121450463,-259.65386687,0.00015755,2]
[403067446,1769121453803,-214.19105989,0.00015755,2]
[403067447,1769121456217,-310.65375151,0.00015755,2]
[403067448,1769121456242,-88.27403466,0.00015755,2]
[403067449,1769121458290,-153.76731991,0.00015755,2]
[403067450,1769121459869,-57.95864543,0.00015755,2]
[403067451,1769121459892,-202.2191889,0.00015772,2]
[403067452,1769121542107,22722.05,0.000151,2]
[403067453,1769121614350,3329.06,0.00012296,2]
[403067454,1769121624776,7870.25,0.00015036,2]
[403067455,1769121673337,3417.99,0.00015054,2]
[403067457,1769121763131,-175.38621614,0.00015717,2]
[403067458,1769121765682,-165.77846592,0.00015717,2]
[403067459,1769121768073,-177.57814668,0.00015717,2]
[403067460,1769121770109,-270.15501241,0.00015717,2]
[403067461,1769121773631,-254.51503636,0.00015717,2]
[403067462,1769121775271,-328.01806371,0.00015717,2]
[403067463,1769121777864,-192.35570445,0.00015717,2]
[403067464,1769121779708,-250.0,0.00015717,2]
[403067465,1769121780280,639.73,0.00015065,2]
[403067466,1769121782393,-162.71146068,0.00015716,2]
[403067467,1769121783693,-137.28853932,0.00015716,2]
[403067468,1769121783717,-254.99177895,0.00015717,2]
[403067469,1769121785859,-191.0812197,0.00015717,2]
[403067470,1769121788304,-217.45216286,0.00015717,2]
[403067471,1769121789893,-981.6941995,0.00015717,2]
[403067472,1769121794141,-215.70872266,0.00015717,2]